bitfinex/quotes_SOLUSD_20250204
["timestamp","ask_amount","ask_price","bid_price","bid_amount"]
[1738647201237,0.03,204.56,204.44,13.41184853]
[1738647201441,0.28098,204.56,204.39,44.56674336]
[1738647201735,0.25098,204.51,204.33,49.46054336]
[1738647201938,0.25098,204.51,204.29,44.56674336]
[1738647202236,1.4666,204.55,204.44,44.56674336]
[1738647202805,1.4666,204.55,204.43,13.41184853]
[1738647203000,1.4666,204.55,204.35,0.85894733]
[1738647203001,0.25098,204.54,204.37,44.56674336]
[1738647203242,0.25098,204.51,204.25,17.1358]
[1738647203440,0.25098,204.47,204.26,44.56674336]
[1738647203732,20.0,204.43,204.24,44.56674336]
[1738647204044,20.0,204.43,204.29,13.41184853]
[1738647204217,1.4672,204.46,204.33,13.41184853]
[1738647204399,1.4672,204.46,204.31,13.41184853]
[1738647204598,20.0,204.43,204.26,44.56674336]
[1738647205311,20.0,204.43,204.31,13.41184853]
[1738647205620,0.25098,204.36,204.14,0.063]
[1738647205802,0.25098,204.36,204.17,44.56674336]
[1738647206002,0.25098,204.36,204.14,4.9614]
[1738647206003,0.25098,204.32,204.15,44.56674336]
[1738647206203,20.0,204.33,204.15,44.56674336]
[1738647206429,20.0,204.33,204.14,0.063]
[1738647206601,9.09709767,204.39,204.15,44.56674336]
[1738647206811,1.0,204.37,204.17,44.56674336]
[1738647207004,5.98529767,204.37,204.14,0.063]
[1738647207209,1.0,204.34,204.14,0.063]
[1738647207510,5.98529767,204.37,204.14,0.063]
[1738647207511,0.25098,204.31,204.14,0.063]
[1738647207728,21.25098,204.27,204.14,0.063]
[1738647207934,20.25098,204.27,204.14,0.063]
[1738647208117,20.0,204.27,204.14,0.063]
[1738647208646,1.25098,204.25,204.14,0.063]
[1738647208808,0.25098,204.22,204.14,0.063]
[1738647209203,20.0,204.16,204.04,0.063]
[1738647209913,1.4695,204.15,204.04,0.063]
[1738647210103,1.4694,204.17,204.04,44.62974336]
[1738647210645,12.6688,204.19,204.09,13.41184853]
[1738647210939,1.4685,204.29,204.18,44.56674336]
[1738647211116,1.4683,204.31,204.2,44.56674336]
[1738647211743,5.1374,204.38,204.18,44.56674336]
[1738647211940,0.12549,204.34,204.16,44.56674336]
[1738647212234,0.25098,204.29,204.08,44.56674336]
[1738647212435,1.0,204.37,204.16,44.56674336]
[1738647212639,1.0,204.37,204.06,18.1517]
[1738647212640,1.0,204.31,204.08,44.56674336]
[1738647212842,0.25098,204.26,204.06,44.56674336]
[1738647213013,0.25098,204.26,204.04,49.53054336]
[1738647213214,1.0,204.25,204.04,49.53054336]
[1738647213435,0.25098,204.24,204.04,49.53054336]
[1738647213729,1.4689,204.23,204.11,44.56674336]
[1738647214037,1.4679,204.36,204.18,13.41184853]
[1738647214335,20.0,204.35,204.19,44.56674336]
[1738647214542,0.25098,204.32,204.11,44.56674336]
[1738647214724,0.25098,204.27,204.06,44.56674336]
[1738647215548,0.25098,204.27,204.04,0.063]
[1738647215549,1.0,204.26,204.04,0.063]
[1738647215722,20.0,204.22,204.04,0.063]
[1738647215936,20.0,204.22,204.06,13.41184853]
[1738647216136,20.0,204.22,204.05,44.56674336]
[1738647216453,20.0,204.22,204.08,13.41184853]
[1738647216758,0.25098,204.21,204.04,0.063]
[1738647217260,0.12549,204.15,204.04,0.063]
[1738647217448,1.25098,204.15,204.04,0.063]
[1738647217762,20.0,204.11,204.04,0.063]
[1738647217920,5.1434,204.14,204.04,0.063]
[1738647217921,1.4695,204.14,204.04,0.063]
[1738647218126,1.4694,204.16,204.05,44.56674336]
[1738647218345,20.0,204.15,204.04,0.063]
[1738647218824,0.25098,204.14,204.04,0.063]
[1738647219156,20.25098,204.14,204.04,0.063]
[1738647219360,21.25098,204.14,204.04,0.063]
[1738647219830,0.25098,204.09,204.04,0.063]
[1738647220027,20.0,204.1,204.04,0.063]
[1738647220430,5.1437,204.13,204.04,0.063]
[1738647220873,1.4696,204.13,204.04,0.063]
[1738647221862,20.0,204.16,204.04,0.063]
[1738647222048,1.4693,204.17,204.04,0.063]
[1738647222427,1.4693,204.17,204.07,44.56674336]
[1738647222626,1.4693,204.17,204.03,44.56674336]
[1738647222855,20.0,204.16,204.01,44.56674336]
[1738647223058,20.0,204.14,203.98,4.9023]
[1738647223247,0.25098,204.13,203.95,44.56674336]
[1738647223481,20.0,204.14,203.98,13.41184853]
[1738647223680,20.0,204.16,203.99,44.56674336]
[1738647223859,25.1429,204.16,204.0,13.41184853]
[1738647224198,0.25098,204.15,203.99,44.56674336]
[1738647224358,1.25098,204.15,203.93,44.62974336]
[1738647224563,0.25098,204.15,203.93,49.53324336]
[1738647224775,0.25098,204.15,203.95,44.56674336]
[1738647225257,0.25098,204.15,203.98,13.41184853]
[1738647225573,1.4694,204.16,204.04,13.41184853]
[1738647225775,1.4692,204.18,203.99,44.56674336]
[1738647225990,0.12549,204.15,203.99,44.56674336]
[1738647226291,20.0,204.15,204.0,13.41184853]
[1738647226795,20.0,204.15,203.99,44.56674336]
[1738647226796,20.0,204.15,203.97,44.56674336]
[1738647226959,5.1424,204.18,204.02,13.41184853]
[1738647227595,0.12549,204.17,203.97,44.56674336]
[1738647227889,0.12549,204.12,203.95,44.56674336]
[1738647228064,0.12549,204.12,203.93,49.53324336]
[1738647228268,0.12549,204.12,203.95,44.56674336]
[1738647228466,1.25098,204.12,203.93,44.62974336]
[1738647228675,0.25098,204.12,203.93,0.063]
[1738647228866,0.25098,204.12,203.96,44.56674336]
[1738647229069,0.25098,204.12,203.97,13.41184853]
[1738647229490,21.0,204.13,203.93,0.063]
[1738647229657,1.4697,204.12,203.95,44.56674336]
[1738647229868,1.4697,204.12,203.96,13.41184853]
[1738647229869,788.0,204.0,203.96,13.41184853]
[1738647230086,738.35,204.0,203.99,44.56674336]
[1738647230565,712.7303,204.0,203.99,44.56674336]
[1738647231092,712.7303,204.0,203.99,57.97859189]
[1738647231281,712.7303,204.0,203.97,44.56674336]
[1738647231489,712.7303,204.0,203.93,44.62974336]
[1738647231790,712.7303,204.0,203.95,49.46974336]
[1738647231970,712.7303,204.0,203.95,44.56674336]
[1738647232180,712.7303,204.0,203.93,44.62974336]
[1738647232373,712.7303,204.0,203.94,13.41184853]
[1738647232588,712.7303,204.0,203.93,44.62974336]
[1738647232767,712.7303,204.0,203.97,44.56674336]
[1738647232958,0.25098,204.16,203.97,44.56674336]
[1738647233165,13.66282853,204.16,203.99,0.063]
[1738647233361,0.25098,204.12,203.99,0.063]
[1738647233793,20.0,204.08,203.99,0.063]
[1738647234702,12.4106,204.19,204.02,44.56674336]
[1738647234890,6.8566,204.18,204.04,44.56674336]
[1738647235384,20.0,204.15,204.04,44.56674336]
[1738647235586,20.25098,204.14,203.99,0.063]
[1738647235778,1.9595,204.13,203.99,0.063]
[1738647235982,0.25098,204.12,203.99,0.063]
[1738647236294,20.0,204.09,203.99,0.063]
[1738647236698,16.6559,204.13,203.99,0.063]
[1738647236865,20.0,204.1,203.99,0.063]
[1738647237396,0.25098,204.09,203.99,0.063]
[1738647237565,20.0,204.1,203.99,0.063]
[1738647237968,1.9599,204.09,203.99,0.063]
[1738647238166,6.8596,204.09,203.99,0.063]
[1738647238373,20.0,204.06,203.99,0.063]
[1738647239097,0.25098,204.05,203.99,0.063]
[1738647239299,20.0,204.06,203.99,0.063]
[1738647239473,16.6591,204.09,203.99,0.063]
[1738647239676,0.25098,204.05,203.99,0.063]
[1738647239873,20.0,204.01,203.93,0.063]
[1738647240115,20.0,203.97,203.93,0.063]
[1738647240602,12.6504,204.0,203.93,0.063]
[1738647240974,20.0,203.97,203.9,0.03]
[1738647241214,20.0,203.97,203.83,0.063]
[1738647241215,0.25098,203.92,203.83,0.063]
[1738647241674,1.0,203.88,203.78,0.063]
[1738647241876,20.0,203.84,203.78,0.063]
[1738647242176,0.25098,203.83,203.78,0.063]
[1738647242392,20.25098,203.83,203.78,0.063]
[1738647242598,20.25098,203.83,203.64,44.56674336]
[1738647242796,0.25098,203.78,203.6,44.56674336]
[1738647243305,0.25098,203.7,203.54,44.56674336]
[1738647243472,5.77414976,203.84,203.62,44.56674336]
[1738647243674,3.1248,203.86,203.64,44.56674336]
[1738647243871,3.1248,203.86,203.67,13.41184853]
[1738647244105,3.1248,203.86,203.66,44.56674336]
[1738647244275,0.25098,203.84,203.66,44.56674336]
[1738647244478,1.9622,203.85,203.68,44.56674336]
[1738647244672,11.8194,203.88,203.75,13.41184853]
[1738647245001,3.0182,203.96,203.78,44.56674336]
[1738647245307,6.8643,203.95,203.77,44.56674336]
[1738647245604,1.9612,203.95,203.83,44.56674336]
[1738647246105,0.25098,203.89,203.71,44.56674336]
[1738647246410,0.25098,203.8,203.63,44.56674336]
[1738647246582,13.41184853,203.84,203.57,0.063]
[1738647246583,0.25098,203.71,203.57,0.063]
[1738647246784,0.25098,203.67,203.57,0.063]
[1738647247087,20.0,203.68,203.57,0.063]
[1738647247404,0.25098,203.67,203.57,0.063]
[1738647247597,13.41184853,203.66,203.57,0.063]
[1738647247798,13.41184853,203.66,203.42,8.41521818]
[1738647247799,0.25098,203.56,203.42,8.41521818]
[1738647248097,6.80855352,203.55,203.28,44.56674336]
[1738647248278,6.80855352,203.55,203.24,44.56674336]
[1738647248279,0.25098,203.47,203.24,44.56674336]
[1738647248598,1.25098,203.47,203.26,55.40764563]
[1738647248802,0.25098,203.47,203.26,55.40764563]
[1738647249006,14.00513428,203.54,203.3,44.56674336]
[1738647249184,0.89585352,203.54,203.32,44.56674336]
[1738647249392,2.0,203.49,203.26,55.40764563]
[1738647249592,0.25098,203.4,203.26,55.40764563]
[1738647249789,20.0,203.45,203.26,55.40764563]
[1738647250006,20.0,203.41,203.26,55.40764563]
[1738647250517,1.0,203.59,203.32,44.56674336]
[1738647250705,6.8782,203.54,203.36,44.56674336]
[1738647251214,1.9652,203.54,203.39,13.41184853]
[1738647251414,1.9652,203.54,203.35,44.56674336]
[1738647251597,20.0,203.51,203.31,50.15672721]
[1738647251777,20.0,203.51,203.33,44.56674336]
[1738647251983,1.9656,203.5,203.35,49.48404336]
[1738647252285,0.25098,203.49,203.32,4.9181]
[1738647252685,4.9119,203.59,203.38,13.41184853]
[1738647252901,19.12219767,203.61,203.42,13.41184853]
[1738647253085,1.9642,203.64,203.46,13.41184853]
[1738647253392,1.9642,203.64,203.49,44.56674336]
[1738647253580,20.0,203.62,203.48,13.41184853]
[1738647253899,6.77179767,203.68,203.49,44.56674336]
[1738647253900,1.964,203.66,203.49,44.56674336]
[1738647254078,1.964,203.66,203.51,44.56674336]
[1738647254281,6.77179767,203.68,203.55,44.56674336]
[1738647254496,8.73469767,203.77,203.6,13.41184853]
[1738647254714,6.77179767,203.77,203.65,44.56674336]
[1738647254985,1.9621,203.87,203.75,44.56674336]
[1738647255187,6.86,204.0,203.8,44.56674336]
[1738647255390,406.86,204.0,203.8,44.56674336]
[1738647255588,1.9611,203.96,203.82,44.56674336]
[1738647255798,1.9611,203.96,203.82,57.97859189]
[1738647255996,1.0,203.98,203.75,44.56674336]
[1738647256195,1.0,203.98,203.7,44.56674336]
[1738647256196,6.863,203.99,203.81,44.56674336]
[1738647256401,6.863,203.99,203.72,31.0]
[1738647256402,1.0,203.95,203.73,44.56674336]
[1738647256602,6.863,203.99,203.6,74.56674336]
[1738647256603,0.25098,203.86,203.66,44.56674336]
[1738647256808,6.58846309,203.86,203.7,44.56674336]
[1738647256976,16.6674,203.99,203.77,13.41184853]
[1738647257180,1.0,203.97,203.74,44.56674336]
[1738647257414,1.0,203.93,203.64,44.56674336]
[1738647257582,20.0,203.96,203.62,44.56674336]
[1738647257583,0.25098,203.82,203.62,44.56674336]
[1738647257786,20.25098,203.82,203.64,44.56674336]
[1738647257988,1.9626,203.81,203.66,44.56674336]
[1738647258312,1.9924,203.83,203.7,44.56674336]
[1738647258698,0.03,203.83,203.76,44.56674336]
[1738647258900,0.03,203.83,203.74,0.063]
[1738647259403,1.9924,203.83,203.74,0.063]
[1738647260111,0.03,203.83,203.74,0.063]
[1738647260493,0.03,203.83,203.74,44.62974336]
[1738647261023,0.25098,203.82,203.74,0.063]
[1738647261225,0.25098,203.78,203.59,44.56674336]
[1738647261391,0.25098,203.78,203.57,44.56674336]
[1738647261808,0.25098,203.74,203.55,49.47934336]
[1738647261991,20.25098,203.7,203.53,44.62974336]
[1738647262191,20.25098,203.7,203.51,52.563]
[1738647262631,20.25098,203.66,203.47,44.56674336]
[1738647262812,20.0,203.67,203.43,44.56674336]
[1738647263023,0.25098,203.61,203.43,44.56674336]
[1738647263190,0.25098,203.61,203.41,44.56674336]
[1738647263394,0.25098,203.61,203.47,44.56674336]
[1738647263692,0.89585352,203.67,203.47,44.56674336]
[1738647264010,0.89585352,203.67,203.4,44.56674336]
[1738647264011,0.89585352,203.67,203.55,44.56674336]
[1738647264214,1.9639,203.67,203.51,44.56674336]
[1738647264400,1.9639,203.67,203.47,44.56674336]
[1738647264401,0.25098,203.66,203.47,44.56674336]
[1738647264600,0.25098,203.63,203.45,44.56674336]
[1738647264825,0.25098,203.63,203.33,13.2512]
[1738647264826,0.25098,203.63,203.43,44.56674336]
[1738647265012,0.25098,203.63,203.41,44.56674336]
[1738647265216,0.25098,203.63,203.32,52.98]
[1738647265217,20.25098,203.56,203.32,49.48494336]
[1738647265394,20.25098,203.56,203.34,44.56674336]
[1738647265596,20.25098,203.56,203.36,44.56674336]
[1738647265921,0.25098,203.51,203.32,44.56674336]
[1738647266102,0.12549,203.46,203.3,44.56674336]
[1738647266302,20.0,203.47,203.26,47.91097026]
[1738647266520,0.25098,203.46,203.26,47.91097026]
[1738647266705,0.25098,203.42,203.26,47.91097026]
[1738647266896,0.25098,203.42,203.26,92.47771362]
[1738647267100,13.89975212,203.5,203.3,44.56674336]
[1738647267314,13.89975212,203.5,203.34,44.56674336]
[1738647267315,0.25098,203.48,203.34,44.56674336]
[1738647267492,6.8796,203.5,203.26,47.91097026]
[1738647267493,20.0,203.47,203.3,44.56674336]
[1738647267698,20.0,203.47,203.28,4.9191]
[1738647267699,13.66282853,203.46,203.26,47.91097026]
[1738647267927,0.25098,203.38,203.26,47.91097026]
[1738647268097,1.9667,203.38,203.26,92.47771362]
[1738647268424,20.0,203.37,203.26,47.91097026]
[1738647269204,1.9661,203.44,203.3,44.56674336]
[1738647269822,1.9661,203.44,203.26,92.47771362]
[1738647270130,4.9154,203.44,203.26,92.47771362]
[1738647270337,1.9659,203.46,203.3,44.56674336]
[1738647270499,1.9659,203.46,203.3,49.48544336]
[1738647270698,1.9659,203.46,203.26,47.91097026]
[1738647270699,0.25098,203.45,203.28,44.56674336]
[1738647270895,20.0,203.43,203.26,92.47771362]
[1738647271315,6.8808,203.46,203.3,44.56674336]
[1738647271494,6.8808,203.46,203.28,44.56674336]
[1738647271698,14.79680564,203.46,203.31,0.73458385]
[1738647271921,0.25098,203.41,203.31,0.73458385]
[1738647272311,0.89585352,203.46,203.31,0.73458385]
[1738647272617,1.9661,203.44,203.34,44.56674336]
[1738647272823,4.9142,203.49,203.34,44.56674336]
[1738647273005,0.25098,203.45,203.31,0.73458385]
[1738647273203,20.25098,203.48,203.31,0.73458385]
[1738647273204,14.66282853,203.48,203.31,0.73458385]
[1738647273408,20.0,203.46,203.31,0.73458385]
[1738647273807,20.0,203.46,203.31,45.30132721]
[1738647274146,0.25098,203.45,203.31,0.73458385]
[1738647274328,20.0,203.41,203.31,0.73458385]
[1738647275029,0.25098,203.4,203.31,0.73458385]
[1738647275203,0.25098,203.36,203.31,8.385e-05]
[1738647275407,20.0,203.37,203.31,8.385e-05]
[1738647275606,5.99182968,203.4,203.31,8.385e-05]
[1738647275854,26.5433,203.44,203.31,8.385e-05]
[1738647276132,6.8815,203.44,203.31,8.385e-05]
[1738647276435,0.12549,203.43,203.31,8.385e-05]
[1738647276739,4.9154,203.44,203.31,44.56682721]
[1738647276941,0.25098,203.43,203.31,8.385e-05]
[1738647277243,20.0,203.41,203.31,8.385e-05]
[1738647277446,4.9154,203.44,203.31,8.385e-05]
[1738647277606,1.9659,203.46,203.31,8.385e-05]
[1738647277940,20.0,203.43,203.31,8.385e-05]
[1738647278312,0.25098,203.37,203.31,8.385e-05]
[1738647278520,1.9669,203.36,203.31,8.385e-05]
[1738647279943,0.25098,203.32,203.31,8.385e-05]
[1738647280118,0.25098,203.32,203.26,47.91097026]
[1738647280311,13.66282853,203.31,203.1,44.62974336]
[1738647280512,20.0,203.23,203.1,44.62974336]
[1738647280845,20.0,203.23,203.14,44.56674336]
[1738647281034,1.4759,203.26,203.14,44.56674336]
[1738647281739,1.4759,203.26,203.16,44.56674336]
[1738647282312,1.4759,203.26,203.12,44.56674336]
[1738647282514,1.4761,203.23,203.1,0.063]
[1738647282718,5.1665,203.23,203.1,0.063]
[1738647282943,0.25098,203.19,203.1,0.063]
[1738647283140,20.0,203.2,202.98,44.56674336]
[1738647283141,0.25098,203.16,202.98,44.56674336]
[1738647283347,20.25098,203.16,202.98,44.56674336]
[1738647283541,20.25098,203.16,203.1,0.063]
[1738647283755,0.12549,203.11,202.92,44.56674336]
[1738647283919,0.12549,203.07,202.9,44.58674336]
[1738647284124,0.12549,203.07,202.92,44.56674336]
[1738647284357,0.12549,203.07,202.96,44.56674336]
[1738647284518,20.0,203.13,202.96,44.56674336]
[1738647284719,0.25098,203.1,202.96,44.56674336]
[1738647284914,0.25098,203.1,202.98,44.56674336]
[1738647285316,0.25098,203.1,202.9,0.02]
[1738647285629,0.25098,203.1,202.91,44.56674336]
[1738647285843,0.25098,203.1,202.93,44.56674336]
[1738647286526,1.72838,203.05,202.9,0.02]
[1738647287045,20.0,203.02,202.9,0.02]
[1738647287622,20.12549,203.01,202.9,0.02]
[1738647287829,1.0,202.99,202.9,0.02]
[1738647288151,0.89585352,202.99,202.9,0.02]
[1738647288342,20.9456,203.05,202.9,0.02]
[1738647288535,20.0,202.97,202.9,0.02]
[1738647288743,20.0,202.91,202.75,45.01333794]
[1738647288920,20.0,202.91,202.77,45.01333794]
[1738647289315,5.1734,202.96,202.79,45.01333794]
[1738647289716,5.1734,202.96,202.83,45.01333794]
[1738647289717,3.19666299,202.95,202.83,45.01333794]
[1738647290129,3.19666299,202.95,202.89,45.01333794]
[1738647290326,3.19666299,202.95,202.84,45.01333794]
[1738647290655,3.19666299,202.95,202.86,45.01333794]
[1738647290846,3.19666299,202.95,202.82,45.01333794]
[1738647290847,4.67486299,202.95,202.82,45.01333794]
[1738647291047,0.25098,202.94,202.8,45.01333794]
[1738647291249,0.25098,202.91,202.76,45.01333794]
[1738647291460,0.25098,202.91,202.68,45.01333794]
[1738647291841,20.0,202.92,202.75,45.01333794]
[1738647292047,20.0,202.92,202.77,45.01333794]
[1738647292363,0.25098,202.87,202.65,45.01333794]
[1738647292562,0.25098,202.87,202.63,77.78914703]
[1738647292734,5.1759,202.86,202.63,72.85424703]
[1738647292929,20.0,202.83,202.63,72.85424703]
[1738647293365,1.89585352,202.82,202.63,27.84090909]
[1738647293657,1.89585352,202.82,202.65,45.01333794]
[1738647293658,0.89585352,202.82,202.65,45.01333794]
[1738647293860,0.25098,202.81,202.63,72.85424703]
[1738647294048,20.25098,202.81,202.65,45.01333794]
[1738647294532,19.9643,202.86,202.63,27.84090909]
[1738647294533,1.4788,202.86,202.73,45.01333794]
[1738647294732,1.0,202.89,202.67,45.01333794]
[1738647294931,1.0,202.88,202.63,27.84090909]
[1738647295142,1.0,202.86,202.63,72.85424703]
[1738647295340,5.1747,202.91,202.67,45.01333794]
[1738647295341,0.12549,202.83,202.67,45.01333794]
[1738647295668,0.12549,202.83,202.63,72.85424703]
[1738647295845,20.0,202.87,202.67,45.01333794]
[1738647296154,20.89585352,202.87,202.67,45.01333794]
[1738647296358,19.9595,202.91,202.71,45.01333794]
[1738647296559,1.0,202.89,202.69,45.01333794]
[1738647296757,1.0,202.85,202.67,0.063]
[1738647297058,20.12549,202.84,202.67,0.063]
[1738647297439,0.89585352,202.85,202.73,45.01333794]
[1738647297763,5.1756,202.87,202.73,45.01333794]
[1738647298062,5.1756,202.87,202.67,0.063]
[1738647298063,0.25098,202.84,202.67,0.063]
[1738647298358,20.25098,202.84,202.67,0.063]
[1738647298568,0.89585352,202.83,202.67,0.063]
[1738647298735,20.0,202.79,202.67,0.063]
[1738647299160,0.89585352,202.78,202.63,27.84090909]
[1738647299542,1.0,202.76,202.63,27.84090909]
[1738647299750,0.89585352,202.75,202.63,27.84090909]
[1738647300763,1.4797,202.75,202.66,45.01333794]
[1738647301060,6.1762,202.85,202.63,27.84090909]
[1738647301363,6.1762,202.85,202.69,13.41184853]
[1738647301364,5.1762,202.85,202.69,13.41184853]
[1738647301560,1.4789,202.85,202.73,13.41184853]
[1738647301861,1.4789,202.85,202.7,45.01333794]
[1738647302159,1.4789,202.85,202.7,44.51333794]
[1738647302462,1.4783,202.93,202.81,13.41184853]
[1738647302648,1.0,202.98,202.73,45.01333794]
[1738647302847,8.8684,202.97,202.75,45.01333794]
[1738647303242,6.06895352,202.97,202.79,45.01333794]
[1738647303440,1.478,202.97,202.81,45.01333794]
[1738647303763,0.25098,202.91,202.68,45.01333794]
[1738647303964,6.27465425,202.91,202.7,45.01333794]
[1738647304163,6.27465425,202.91,202.66,4.9342]
[1738647304164,0.89585352,202.9,202.72,45.01333794]
[1738647304372,19.9535,202.97,202.76,45.01333794]
[1738647304536,5.1731,202.97,202.79,13.41184853]
[1738647304739,12.8407,203.03,202.72,1.12549]
[1738647304740,5.1718,203.02,202.83,13.41184853]
[1738647304984,1.4776,203.02,202.87,13.41184853]
[1738647305267,1.4776,203.02,202.89,13.41184853]
[1738647305566,20.0,202.99,202.82,45.01333794]
[1738647305770,5.1718,203.02,202.82,45.01333794]
[1738647305948,1.4776,203.02,202.89,13.41184853]
[1738647306275,1.4776,203.02,202.86,45.01333794]
[1738647306461,1.4776,203.02,202.88,45.01333794]
[1738647306646,1.4776,203.02,202.84,1.0]
[1738647306647,1.4773,203.06,202.9,45.01333794]
[1738647306839,0.03,203.1,202.91,13.41184853]
[1738647307050,12.03610556,203.1,202.91,13.41184853]
[1738647307268,12.03610556,203.1,202.88,45.01333794]
[1738647307440,12.03610556,203.1,202.9,45.01333794]
[1738647307441,0.03,203.1,202.9,45.01333794]
[1738647307642,1.0,203.08,202.82,61.02313794]
[1738647307953,0.25098,203.03,202.82,45.01333794]
[1738647308479,12.90195908,203.07,202.87,13.41184853]
[1738647308762,0.12549,203.06,202.87,13.41184853]
[1738647308971,0.12549,203.04,202.81,45.01333794]
[1738647309147,0.25098,202.99,202.79,45.01333794]
[1738647309350,0.25098,202.99,202.72,17.0098]
[1738647309351,0.25098,202.94,202.75,45.01333794]
[1738647309557,0.25098,202.94,202.64,30.39549716]
[1738647309558,0.25098,202.94,202.73,45.01333794]
[1738647309783,20.0,202.9,202.7,5.9962]
[1738647309949,3.084,203.01,202.81,45.01333794]
[1738647310145,20.25098,203.0,202.82,13.41184853]
[1738647310343,20.25098,203.0,202.81,45.01333794]
[1738647310555,20.25098,203.0,202.79,45.01333794]
[1738647310766,6.02367425,202.99,202.79,45.01333794]
[1738647310940,5.1728,202.98,202.79,45.01333794]
[1738647311139,0.25098,202.94,202.75,45.01333794]
[1738647311364,0.25098,202.94,202.7,0.063]
[1738647311365,0.25098,202.89,202.7,0.063]
[1738647311575,0.25098,202.89,202.71,45.01333794]
[1738647311753,20.0,202.9,202.75,45.01333794]
[1738647311956,19.9524,202.98,202.79,45.01333794]
[1738647312142,19.9524,202.98,202.75,45.01333794]
[1738647312357,0.25098,202.93,202.73,45.01333794]
[1738647312538,0.25098,202.93,202.71,45.01333794]
[1738647312742,0.25098,202.89,202.7,0.063]
[1738647312966,20.0,202.85,202.7,0.063]
[1738647313184,0.12549,202.84,202.7,13.47484853]
[1738647313337,5.1754,202.88,202.77,45.01333794]
[1738647313538,5.1754,202.88,202.7,45.07633794]
[1738647313773,20.0,202.85,202.7,0.063]
[1738647314354,5.1754,202.88,202.75,45.01333794]
[1738647314553,5.1754,202.88,202.7,0.063]
[1738647314764,20.0,202.85,202.7,0.063]
[1738647314974,5.1754,202.88,202.7,0.063]
[1738647314975,32.82218,202.84,202.7,0.063]
[1738647315168,0.89585352,202.83,202.58,45.01333794]
[1738647315470,0.25098,202.74,202.52,45.01333794]
[1738647315680,0.25098,202.74,202.57,13.41184853]
[1738647315861,2.9808,202.81,202.6,45.01333794]
[1738647316054,2.9808,202.81,202.64,45.01333794]
[1738647316254,22.9808,202.81,202.65,13.41184853]
[1738647316557,20.0,202.81,202.65,13.41184853]
[1738647316963,0.12549,202.76,202.6,45.01333794]
[1738647317167,5.1774,202.8,202.65,13.41184853]
[1738647317372,5.1774,202.8,202.66,45.01333794]
[1738647317671,1.4792,202.8,202.74,45.01333794]
[1738647317889,3.6967,202.88,202.75,13.41184853]
[1738647318286,1.4785,202.9,202.79,13.41184853]
[1738647318585,1.4785,202.9,202.78,45.01333794]
[1738647318586,3.6951,202.97,202.74,45.01333794]
[1738647318752,3.6951,202.97,202.68,45.01333794]
[1738647318753,13.66282853,202.92,202.68,45.01333794]
[1738647318960,13.66282853,202.92,202.63,45.80190909]
[1738647318961,20.0,202.84,202.7,45.01333794]
[1738647319173,5.1756,202.87,202.74,45.01333794]
[1738647319174,1.4787,202.87,202.74,45.01333794]
[1738647319483,1.4787,202.87,202.77,13.41184853]
[1738647319649,20.0,202.84,202.72,45.01333794]
[1738647319851,1.4787,202.87,202.72,45.01333794]
[1738647320091,1.4787,202.87,202.76,45.01333794]
[1738647320583,5.1756,202.87,202.72,45.01333794]
[1738647320749,20.0,202.84,202.7,45.01333794]
[1738647320946,1.479,202.83,202.72,45.01333794]
[1738647321165,1.4782,202.94,202.8,45.01333794]
[1738647321364,1.4782,202.94,202.81,13.41184853]
[1738647321598,1.4782,202.94,202.82,45.01333794]
[1738647321805,1.4782,202.94,202.87,13.41184853]
[1738647321979,1.4782,202.94,202.82,45.01333794]
[1738647322167,1.4779,202.99,202.86,45.01333794]
[1738647322501,0.03,203.02,202.9,45.01333794]
[1738647322791,1.4777,203.01,202.9,45.01333794]
[1738647322994,20.0,202.97,202.84,45.01333794]
[1738647323405,20.0,202.97,202.82,45.01333794]
[1738647323885,20.0,202.97,202.84,45.01333794]
[1738647324104,1005.1723,203.0,202.86,45.01333794]